bitfinex-derivatives/quotes_ETHF0:USTF0_20250730
["timestamp","ask_amount","ask_price","bid_price","bid_amount"]
[1753864896087,2.6282,3819.9,3819.8,1.24112488]
[1753864896289,2.6282,3819.9,3819.8,0.19372488]
[1753864896290,7.86400768,3819.9,3819.8,0.19372488]
[1753864899288,1.0685,3819.3,3816.8,6.07970901]
[1753864899585,0.4309,3817.4,3817.3,2.0339]
[1753864899784,1.0989,3817.4,3817.3,2.0339]
[1753864899985,21.106,3817.5,3817.4,2.0339]
[1753864900386,0.52391,3817.6,3817.4,2.0339]
[1753864900592,0.95481,3817.6,3817.5,2.0339]
[1753864901090,2.66031,3817.6,3817.5,2.0339]
[1753864901286,3.15211,3817.6,3817.5,2.0339]
[1753864901479,1.0989,3817.6,3817.5,2.0339]
[1753864901684,1.0989,3817.6,3817.5,2.6591]
[1753864901883,22.2179,3817.6,3817.5,2.6591]
[1753864902089,21.5499,3817.6,3817.5,2.6591]
[1753864902795,21.5499,3817.6,3817.5,3.18302]
[1753864902997,21.118,3817.6,3817.5,3.18302]
[1753864903294,40.8,3817.7,3817.5,1.57132]
[1753864903494,40.8,3817.7,3817.6,1.0474]
[1753864903693,0.52372,3819.0,3817.6,1.0474]
[1753864903890,1.8096,3818.0,3817.9,1.0474]
[1753864904196,64.0564,3818.0,3817.9,2.6591]
[1753864904892,42.9364,3818.0,3817.9,2.6591]
[1753864905100,62.6567,3818.0,3817.9,2.6591]
[1753864905300,41.5417,3818.0,3817.9,2.6591]
[1753864905495,21.8557,3818.0,3817.9,2.6591]
[1753864906499,40.8,3818.2,3818.1,2.6591]
[1753864906686,61.914,3818.2,3818.1,2.6591]
[1753864906889,40.8,3818.2,3818.1,2.6591]
[1753864907098,61.911,3818.2,3818.1,2.6591]
[1753864907402,1.9602,3819.0,3818.9,0.52373]
[1753864907894,67.15313888,3819.0,3818.9,3.18283]
[1753864908092,61.915,3819.0,3818.9,3.18283]
[1753864908293,41.468,3819.0,3818.9,3.18283]
[1753864908492,62.582,3819.0,3818.9,3.18283]
[1753864908694,1.8096,3819.3,3819.2,2.68409]
[1753864908890,2.6282,3819.8,3819.7,2.0339]
[1753864909092,23.7412,3819.8,3819.7,2.6591]
[1753864909293,69.77824159,3819.8,3819.7,1.1355]
[1753864909498,69.77824159,3819.8,3819.4,0.4878]
[1753864909499,69.77824159,3819.8,3819.4,0.9865]
[1753864909697,2.1364,3819.7,3819.6,0.52364]
[1753864909895,2.6282,3819.7,3819.6,0.52364]
[1753864910899,2.6282,3819.7,3819.6,1.65914]
[1753864911892,23.7362,3819.7,3819.6,1.65914]
[1753864912093,23.7362,3819.7,3819.6,2.59394]
[1753864912094,2.6282,3819.7,3819.6,2.59394]
[1753864912399,22.9113,3819.7,3819.6,3.23604]
[1753864912600,23.2259,3819.7,3819.6,3.23604]
[1753864912995,2.1229,3819.7,3819.6,3.23604]
[1753864913295,0.4772,3820.2,3819.8,0.52361]
[1753864913600,22.7821,3819.9,3819.8,3.21581]
[1753864913798,1.6761,3819.9,3819.8,3.21581]
[1753864913998,23.4225,3819.9,3819.8,3.21581]
[1753864914299,23.8997,3819.9,3819.8,3.21581]
[1753864914502,64.6997,3819.9,3819.8,3.21581]
[1753864914801,64.6997,3819.9,3819.8,2.6922]
[1753864915299,42.0378,3819.9,3819.8,2.6922]
[1753864915496,63.1408,3819.9,3819.8,2.6922]
[1753864916097,63.618,3819.9,3819.8,2.6922]
[1753864917202,42.515,3819.9,3819.8,2.6922]
[1753864917401,63.1368,3819.9,3819.8,2.6922]
[1753864919301,0.2,3819.9,3819.8,2.6922]
[1753864920390,1e-05,3819.9,3819.8,2.6922]
[1753864920603,0.7233,3820.9,3820.8,2.57357]
[1753864920896,64.0133,3820.9,3820.8,3.21567]
[1753864921091,65.28603835,3820.9,3820.8,3.21567]
[1753864921801,21.89353835,3820.9,3820.8,3.21567]
[1753864922590,0.79553835,3820.9,3820.8,3.21567]
[1753864924903,41.4404,3821.2,3821.1,1.59633]
[1753864925197,41.59576588,3821.2,3821.1,3.21563]
[1753864925399,0.79576588,3821.2,3821.1,3.21563]
[1753864926298,0.79576588,3821.2,3820.6,1.30875]
[1753864926299,21.8589,3821.5,3821.4,2.07419]
[1753864926505,2.91066268,3821.5,3821.4,3.21559]
[1753864927899,2.19866268,3821.5,3821.4,3.21559]
[1753864928604,2.59606268,3821.5,3821.4,3.21559]
[1753864929501,1.4033,3821.0,3820.9,3.21566]
[1753864930105,0.437,3821.0,3820.9,3.21566]
[1753864930306,1.0774,3821.0,3820.9,3.21566]
[1753864930604,1.4033,3821.0,3820.9,3.21566]
[1753864931698,2.1153,3821.5,3821.4,1.59628]
[1753864932202,0.437,3821.5,3821.4,3.21558]
[1753864932504,1.4033,3821.5,3821.4,3.21558]
[1753864933805,2.1153,3821.5,3821.4,3.21558]
[1753864934001,2.5925,3821.5,3821.4,3.21558]
[1753864935299,2.1153,3821.5,3821.4,3.21558]
[1753864936101,1.7179,3821.5,3821.4,2.57348]
[1753864936306,2.1153,3821.5,3821.4,3.21558]
[1753864938500,2.5925,3821.5,3821.4,3.21558]
[1753864938802,1.7547,3821.9,3821.8,1.5508]
[1753864939108,42.5547,3821.9,3821.8,1.5508]
[1753864939402,43.5925,3821.9,3821.8,1.5508]
[1753864939701,42.0775,3821.9,3821.7,1.00125]
[1753864939904,41.0,3821.9,3821.7,2.57345]
[1753864940212,0.2,3821.9,3821.8,2.6922]
[1753864943206,0.018,3822.3,3822.2,2.6709]
[1753864943515,1.783,3822.3,3822.2,2.6709]
[1753864943804,2.0879,3822.3,3822.2,2.6709]
[1753864944007,2.5382,3822.3,3822.2,2.6709]
[1753864944496,2.5382,3822.3,3822.1,0.52329]
[1753864944807,2.5202,3821.8,3821.7,5.79735]
[1753864947005,0.52335,3821.7,3821.2,0.4874]
[1753864947208,2.5202,3821.3,3821.2,1.63872]
[1753864949098,2.5202,3821.3,3821.2,3.19432]
[1753864951512,2.5202,3821.3,3821.2,2.55012]
[1753864953507,1.4401,3821.8,3821.7,2.55004]
[1753864953812,2.5202,3821.8,3821.7,3.19424]
[1753864954515,2.0699,3821.8,3821.7,3.19424]
[1753864955010,1.3816,3822.1,3822.0,2.87261]
[1753864955314,0.4281,3822.1,3822.0,3.19421]
[1753864955810,0.3417,3822.3,3822.2,0.52328]
[1753864956109,0.4461,3822.3,3822.2,3.19418]
[1753864956314,0.018,3822.3,3822.2,3.19418]
[1753864956615,1.0759,3822.3,3822.2,3.19418]
[1753864957009,1.3996,3822.3,3822.2,3.19418]
[1753864957517,0.018,3822.3,3822.2,3.19418]
[1753864957719,1e-05,3822.3,3822.2,3.19418]
[1753864959015,0.42811,3822.3,3822.2,3.19418]
[1753864959212,1.38161,3822.3,3822.2,3.19418]
[1753864961320,1.76501,3822.3,3822.2,3.19418]
[1753864961813,2.52021,3822.3,3822.2,2.54998]
[1753864962013,2.52021,3822.3,3822.2,1.15118]
[1753864962410,2.52021,3822.3,3822.2,1.63858]
[1753864962617,2.52021,3822.3,3822.2,2.11198]
[1753864962808,2.52021,3822.3,3822.2,2.54998]
[1753864963119,2.52021,3822.3,3822.2,3.19418]
[1753864966115,2.52021,3822.3,3822.2,0.52328]
[1753864966721,2.52021,3822.3,3822.2,1.01068]
[1753864966917,2.52021,3822.3,3822.2,0.52328]
[1753864968112,2.52021,3822.3,3822.2,2.11198]
[1753864968319,0.32371,3822.3,3822.2,1.58918]
[1753864968616,0.75181,3822.3,3822.2,1.58918]
[1753864968812,1.76501,3822.3,3822.2,2.07658]
[1753864969026,1.76501,3822.3,3822.2,3.19418]
[1753864969226,1e-05,3822.3,3822.2,1.58918]
[1753864970618,1e-05,3822.3,3822.2,12.09570011]
[1753864971321,0.9408466,3824.7,3823.8,1.58026]
[1753864971521,0.9408466,3824.7,3823.8,3.16456]
[1753864971522,0.3754,3824.4,3823.8,3.16456]
[1753864971724,0.6095,3824.2,3823.8,3.16456]
[1753864971923,0.9849,3824.2,3823.8,3.16456]
[1753864972123,1.0312048,3823.9,3823.8,3.16456]
[1753864972625,0.0038048,3823.9,3823.8,3.16456]
[1753864973218,1.4514,3824.9,3823.4,1.5843]
[1753864973422,2.08472554,3824.8,3824.6,0.52295]
[1753864973626,2.4884,3824.6,3824.5,0.52296]
[1753864974027,2.4884,3824.6,3824.5,3.13006]
[1753864974619,1.5035,3824.6,3824.5,1.0973]
[1753864974826,1.5035,3824.6,3824.5,2.2035]
[1753864975029,1.5035,3824.6,3824.5,2.6071]
[1753864975326,1.4124,3824.6,3824.5,2.6071]
[1753864975526,2.0219,3824.6,3824.5,2.6071]
[1753864976228,2.4884,3824.6,3824.5,2.6071]
[1753864976928,40.8,3824.7,3824.5,2.48865]
[1753864977129,2.4884,3824.6,3824.5,2.18715]
[1753864977717,1.4514,3824.5,3823.9,1.5843]
[1753864977923,0.7318,3824.0,3823.9,2.65205]
[1753864978220,1.3413,3824.0,3823.9,2.65205]
[1753864978427,1.3413,3824.0,3823.9,3.13015]
[1753864979824,2.0219,3824.0,3823.9,1.14225]
[1753864980024,2.4884,3824.0,3823.9,1.62035]
[1753864980231,1.037,3823.8,3823.7,0.52307]
[1753864980427,2.4884,3823.8,3823.7,0.52307]
[1753864981029,2.4833,3823.7,3823.6,0.52309]
[1753864981331,2.4833,3823.6,3823.5,0.52309]
[1753864984125,1.8738,3823.5,3823.4,1.62041]
[1753864984330,2.4833,3823.5,3823.4,3.13021]
[1753864984933,2.113,3823.5,3823.4,2.48881]
[1753864985133,2.4833,3823.5,3823.4,2.08521]
[1753864985633,2.4833,3823.5,3823.4,1.5621]
[1753864986029,2.4833,3823.5,3823.4,1.9657]
[1753864986330,2.0168,3823.8,3823.7,2.18727]
[1753864986520,2.0168,3823.8,3823.7,1.6642]
[1753864986723,2.4833,3823.8,3823.7,1.6642]
[1753864986919,2.4833,3823.8,3823.7,1.5621]
[1753864987127,43.2833,3823.8,3823.7,0.6192]
[1753864987426,2.4833,3823.3,3823.2,1.00124]
[1753864987630,0.3703,3823.7,3823.6,0.52309]
[1753864987929,1.7116,3823.7,3823.6,3.13019]
[1753864988127,1.8738,3824.0,3823.9,2.48875]
[1753864988328,2.0168,3824.0,3823.9,2.6071]
[1753864988520,2.4833,3824.0,3823.9,2.6071]
[1753864989123,2.4833,3824.0,3823.9,1.9657]
[1753864990422,1.5035,3823.8,3823.7,2.48876]
[1753864990630,1.3413,3823.8,3823.7,3.13016]
[1753864990924,2.4833,3824.3,3824.2,1.0973]
[1753864991129,1.037,3824.3,3824.0,1.00112]
[1753864991426,0.7231,3823.8,3823.7,0.52307]
[1753864991626,2.4833,3823.8,3823.7,1.62037]
[1753864991834,2.4833,3823.8,3823.7,2.48877]
[1753864992130,2.4833,3823.8,3823.7,3.13017]
[1753864992631,0.52305,3823.9,3823.5,1.31819]
[1753864992833,2.4833,3823.6,3823.5,0.52309]
[1753864993328,1.0274,3823.6,3823.5,3.13019]
[1753864993632,2.0168,3823.9,3823.8,2.6071]
[1753864995030,2.4833,3823.9,3823.8,2.6071]
[1753864997228,2.4833,3823.9,3823.8,1.9657]
[1753864997530,2.4833,3823.9,3823.8,1.5621]
[1753864997725,1.4559,3823.9,3823.8,1.5621]
[1753864997933,2.4833,3823.9,3823.7,0.52306]
[1753864998232,2.4833,3823.5,3823.4,3.13021]
[1753864998728,2.0168,3823.5,3823.4,3.13021]
[1753864999426,2.4833,3823.5,3823.4,3.13021]
[1753864999726,2.4833,3823.5,3823.4,2.48881]
[1753864999932,2.4833,3823.5,3823.4,1.0973]
[1753865002330,2.4833,3823.5,3823.4,1.5462]
[1753865002738,2.4833,3823.5,3823.4,2.5569]
[1753865005936,2.4833,3823.5,3823.4,1.5462]
[1753865006544,2.4833,3823.5,3823.4,2.5569]
[1753865006746,1.3714,3823.5,3823.4,2.5569]
[1753865010846,1.3675,3823.8,3823.7,1.0065]
[1753865011145,2.0071,3823.8,3823.7,3.07977]
[1753865011350,2.4638,3823.8,3823.7,3.07977]
[1753865013247,2.4638,3823.8,3823.7,0.83257]
[1753865013551,2.4638,3823.8,3823.7,1.31417]
[1753865013745,41.2567,3824.2,3824.1,0.52302]
[1753865013947,63.3088,3824.2,3824.1,2.06902]
[1753865014147,69.06227747,3824.2,3824.1,1.62012]
[1753865014454,42.2548,3824.2,3824.1,3.07972]
[1753865014754,42.2548,3824.2,3824.1,1.0971]
[1753865015050,2.4638,3824.1,3824.0,1.00463]
[1753865015254,2.4638,3824.1,3824.0,3.07973]
[1753865015753,0.706,3824.1,3824.0,3.07973]
[1753865015949,1.6486,3824.1,3824.0,3.07973]
[1753865016150,2.4638,3824.1,3824.0,3.07973]
[1753865016350,2.0071,3824.1,3824.0,3.07973]
[1753865018354,1.6486,3824.1,3824.0,3.07973]
[1753865018556,1.3456,3824.1,3824.0,3.07973]
[1753865019444,1.7041,3824.1,3824.0,3.07973]
[1753865019954,2.0071,3824.1,3824.0,3.07973]
[1753865020451,40.8,3824.2,3824.0,3.07973]
[1753865020652,41.4396,3824.2,3824.1,2.5567]
[1753865020955,41.7981,3824.2,3824.1,2.5567]
[1753865021458,42.2548,3824.2,3824.1,2.5567]
[1753865022551,42.2548,3824.2,3824.1,1.0971]
[1753865022751,0.6993,3823.7,3823.6,0.83259]
[1753865023054,6.23892037,3823.7,3823.5,5.79709]
[1753865023458,2.4638,3823.6,3823.5,5.79709]
[1753865023655,2.0071,3823.9,3823.8,1.00466]
[1753865023863,23.5128,3823.9,3823.8,1.75956]
[1753865024063,23.5128,3823.9,3823.8,1.31066]
[1753865024561,23.5128,3823.9,3823.8,2.06906]
[1753865024754,21.049,3823.9,3823.8,3.07976]
[1753865024955,22.3568,3823.9,3823.8,3.07976]
[1753865025258,22.7531,3823.9,3823.8,3.07976]
[1753865025451,22.3946,3823.9,3823.8,3.07976]
[1753865025647,1.3456,3824.1,3824.0,3.07973]
[1753865025848,21.4453,3824.1,3824.0,3.07973]
[1753865026259,22.0849,3824.1,3824.0,3.07973]
[1753865026652,21.4453,3824.1,3824.0,3.07973]
[1753865026849,0.3963,3824.1,3824.0,3.07973]
[1753865027053,1.0359,3824.1,3824.0,3.07973]
[1753865027955,1.3456,3824.1,3824.0,3.07973]
[1753865028155,2.4638,3824.1,3824.0,3.07973]
[1753865028360,2.4638,3824.1,3824.0,2.5567]
[1753865028858,2.4638,3824.1,3824.0,1.937]
[1753865030254,2.4638,3824.1,3824.0,2.5567]
[1753865030653,2.0071,3824.1,3824.0,2.5567]
[1753865032156,40.8,3824.3,3824.2,1.0189]
[1753865032456,0.6234,3824.3,3824.2,2.4881]
[1753865032657,1.6583,3824.3,3824.2,2.4881]
[1753865032849,42.4583,3824.3,3824.2,2.4881]
[1753865033255,40.8,3824.3,3824.2,2.4881]
[1753865033855,2.4207,3824.6,3824.5,2.4881]
[1753865034056,23.4657,3824.6,3824.5,3.01106]
[1753865034351,64.2657,3824.6,3824.5,3.01106]
[1753865035660,64.2657,3824.6,3824.5,2.4881]
[1753865035859,64.2657,3824.6,3823.9,1.30762]
[1753865035860,1.9654,3824.0,3823.9,2.57145]
[1753865036054,2.4207,3824.0,3823.9,2.57145]
[1753865036360,7.65007339,3824.0,3823.9,1.56375]
[1753865036552,7.65007339,3824.0,3823.9,2.01585]
[1753865037053,1.9654,3824.0,3823.9,3.01115]
[1753865037456,2.4207,3824.0,3823.9,3.01115]
[1753865038063,23.0094,3824.4,3824.3,2.4881]
[1753865038263,23.4647,3824.4,3824.3,2.4881]
[1753865038465,23.4647,3824.4,3824.3,1.0531]
[1753865038663,22.0441,3824.4,3824.2,0.52301]
[1753865038866,2.4207,3824.3,3824.2,2.01581]
[1753865039362,2.4207,3824.3,3824.2,1.0531]
[1753865039757,2.4207,3824.3,3824.2,0.2919]
[1753865040359,1.6235,3824.3,3824.1,0.52301]
[1753865040567,2.4207,3824.2,3824.1,1.12401]
[1753865040864,2.4207,3824.1,3824.0,0.52303]
[1753865041457,2.0788,3824.0,3823.9,0.52304]
[1753865041656,2.4207,3824.0,3823.9,1.54194]
[1753865041858,1.3164,3824.0,3823.9,3.01114]
[1753865042364,1.6583,3824.0,3823.9,3.01114]
[1753865042864,1.4554,3824.3,3824.2,1.54191]
[1753865043066,1.4554,3824.3,3824.2,3.01111]
[1753865043268,1.4554,3824.3,3824.2,2.43371]
[1753865043665,2.4207,3824.3,3824.2,2.43371]
[1753865044370,2.4207,3824.3,3824.2,1.0531]
[1753865044757,0.7021,3823.7,3823.6,1.5963]
[1753865044967,2.4207,3823.7,3823.6,0.52309]
[1753865045270,7.65048361,3823.7,3823.6,0.52309]
[1753865045569,48.45048361,3823.7,3823.6,0.52309]
[1753865046465,48.45048361,3823.7,3823.2,1.0171]
[1753865046466,1.0001,3823.1,3823.0,1.4586]
[1753865046672,1.9654,3823.1,3823.0,2.4881]
[1753865046971,1.3164,3823.1,3823.0,2.4881]
[1753865047174,1.3164,3823.1,3823.0,3.01127]
[1753865047874,0.395,3823.1,3823.0,3.01127]
[1753865048074,1.9654,3823.4,3823.3,1.54203]
[1753865048373,1.9654,3823.4,3823.3,3.01123]
[1753865048766,2.4207,3823.4,3823.3,3.01123]
[1753865049577,2.4207,3823.4,3823.3,2.4881]
[1753865050774,1.0001,3823.0,3822.9,1.54208]
[1753865051069,1.9567,3823.0,3822.9,1.54208]
[1753865051374,1.9567,3823.0,3822.9,3.01128]
[1753865051570,21.04,3823.4,3822.4,5.274]
[1753865051869,2.412,3822.7,3821.9,1.30831]
[1753865052074,2.412,3822.6,3822.5,2.01604]
[1753865052275,43.212,3822.6,3822.5,3.01134]
[1753865054068,42.7567,3822.6,3822.5,3.01134]
[1753865055172,43.212,3822.6,3822.5,1.9107]
[1753865055576,43.212,3822.6,3822.5,1.4928]
[1753865056774,43.212,3822.6,3822.5,1.9107]
[1753865056971,43.212,3822.6,3822.5,2.4881]
[1753865058276,43.212,3822.6,3822.5,1.4928]
[1753865058778,43.212,3822.6,3822.5,1.0531]
[1753865059276,1.4119,3821.9,3821.8,0.79462351]
[1753865059477,2.412,3821.9,3821.8,0.19362351]
[1753865059778,7.64410945,3821.9,3821.8,0.19362351]
[1753865059978,7.18880945,3821.9,3821.8,1.24672351]
[1753865060177,26.96610945,3821.9,3821.8,2.68172351]
[1753865060378,0.395,3821.9,3821.8,2.68172351]
[1753865060575,23.1198,3822.2,3822.1,1.0189]
[1753865060780,23.453,3822.2,3822.1,2.4881]
[1753865061282,23.453,3822.2,3822.1,1.4928]
[1753865061782,23.453,3822.2,3822.1,1.0531]
[1753865062588,23.453,3822.2,3822.1,2.495]
[1753865062883,1.0114,3822.3,3822.2,0.90478]
[1753865063081,22.3603,3822.3,3822.2,1.49218]
[1753865063475,22.6859,3822.3,3822.2,2.98058]
[1753865063679,40.8,3822.6,3822.2,0.9689]
[1753865063879,22.3603,3822.4,3822.3,2.98057]
[1753865064080,22.6859,3822.4,3822.3,2.98057]
[1753865064688,22.6859,3822.4,3822.3,2.4573]
[1753865064986,22.9958,3822.4,3822.3,2.4573]
[1753865065187,23.4338,3822.4,3822.3,2.4573]
[1753865065988,2.3898,3822.4,3822.3,2.4573]
[1753865066181,23.4338,3822.4,3822.3,2.4573]
[1753865068482,22.9958,3822.4,3822.3,2.4573]
[1753865069392,1.3163,3822.4,3822.3,2.4573]
[1753865069582,21.043,3822.4,3822.3,2.98057]
[1753865070994,40.8,3822.6,3822.5,2.98054]
[1753865071195,61.843,3822.6,3822.5,2.98054]
[1753865071398,40.8,3822.6,3822.5,2.98054]
[1753865073794,22.3593,3822.7,3822.6,2.4573]
[1753865074187,22.3593,3822.7,3822.6,1.8576]
[1753865074392,22.3593,3822.7,3822.6,2.4573]
[1753865074893,21.4376,3822.7,3822.6,2.4573]
[1753865075093,22.3593,3822.7,3822.6,2.4573]
[1753865075395,1.3163,3822.7,3822.6,2.4573]
[1753865075592,1.6419,3822.7,3822.6,2.4573]
[1753865075891,40.8,3822.9,3822.7,0.52321]
[1753865076095,40.8,3822.9,3822.8,2.4573]
[1753865076096,22.0524,3822.9,3822.8,2.4573]
[1753865076296,1.3163,3822.9,3822.8,2.4573]
[1753865076685,1.6419,3822.9,3822.8,2.9805]
[1753865076889,1.3163,3823.2,3823.1,1.49205]
[1753865077089,22.6829,3823.2,3823.1,2.98045]
[1753865077294,1.6419,3823.2,3823.1,2.98045]
[1753865077598,63.4819,3823.2,3823.1,2.98045]
[1753865078001,63.9199,3823.2,3823.1,2.98045]
[1753865079792,0.3099,3823.0,3822.9,1.0117]
[1753865080098,2.3898,3823.0,3822.9,1.4761]
[1753865081596,2.3898,3823.0,3822.9,1.99928]
[1753865082697,2.3898,3822.9,3822.8,1.99929]
[1753865083797,2.3898,3822.9,3822.8,2.38079]
[1753865084103,2.3898,3822.9,3822.8,2.98049]
[1753865084400,2.3898,3822.9,3822.8,2.4573]
[1753865085502,1.9518,3822.6,3822.5,2.38083]
[1753865085697,1.3163,3822.6,3822.5,2.98053]
[1753865086702,1.6419,3822.6,3822.5,2.98053]
[1753865088495,0.6995,3822.6,3822.5,2.98053]
[1753865088696,0.3946,3822.6,3822.5,2.98053]
[1753865088904,1.3163,3822.8,3822.7,1.49211]
[1753865089104,1.9518,3822.8,3822.7,2.98051]
[1753865089304,2.3898,3822.8,3822.7,2.98051]
[1753865090305,2.3898,3822.8,3822.7,2.4573]
[1753865093504,1.9518,3822.8,3822.7,2.4573]
[1753865094203,2.3647,3822.8,3822.7,2.4573]
[1753865094601,1.9518,3822.8,3822.7,2.4573]
[1753865095312,21.035,3822.9,3822.8,0.5232]
[1753865095606,41.1213,3823.2,3823.1,1.4231]
[1753865095607,40.8,3823.2,3823.1,1.4231]
[1753865095801,40.8,3823.2,3823.1,2.4509]
[1753865096003,61.831,3823.2,3823.1,2.4509]
[1753865096406,62.4179,3823.2,3823.1,2.4509]
[1753865096606,62.7392,3823.2,3823.1,2.4509]
[1753865096901,21.031,3823.3,3823.2,0.90134]
[1753865097105,21.031,3823.3,3823.2,2.97404]
[1753865097298,21.9697,3823.5,3823.4,1.4979]
[1753865097506,63.6779,3823.5,3823.4,2.974]
[1753865098209,42.6469,3823.5,3823.4,2.974]
[1753865098812,41.4545,3823.5,3823.4,2.974]
[1753865099808,42.0414,3823.5,3823.4,2.974]
[1753865100410,41.1694,3823.5,3823.4,2.974]
[1753865100607,1.8469,3824.2,3824.1,1.49782]
[1753865100811,0.52302,3824.1,3823.5,0.4483]
[1753865101011,0.52331,3822.0,3821.4,0.52337]
[1753865101206,64.3728,3821.9,3821.6,0.52335]
[1753865101409,69.60272037,3821.9,3821.3,0.5958]
[1753865101604,64.3778,3821.9,3821.5,0.5958]
[1753865101905,69.60772037,3821.9,3821.5,0.5958]
[1753865102102,48.41672037,3821.9,3821.8,1.16842351]
[1753865102305,64.3758,3821.9,3821.8,1.76422351]
[1753865102509,62.9277,3821.9,3821.8,1.76422351]
[1753865102909,41.7387,3821.9,3821.8,1.76422351]
[1753865103216,2.1026,3822.2,3822.1,2.4509]
[1753865103402,23.2916,3822.2,3822.1,2.4509]
[1753865103605,41.8674,3822.2,3822.1,2.4509]
[1753865103806,41.4545,3822.2,3822.1,2.4509]
[1753865104107,41.8674,3822.2,3822.1,2.4509]
[1753865104312,42.9026,3822.2,3822.1,2.4509]
[1753865105312,41.4545,3822.2,3822.1,2.4509]
[1753865105611,41.8674,3822.2,3822.1,2.4509]
[1753865105814,42.9026,3822.2,3822.1,2.4509]
[1753865106512,41.4545,3822.2,3822.1,2.4509]
[1753865107217,0.2851,3822.2,3822.1,2.4509]
[1753865108117,0.6545,3822.2,3822.1,2.4509]
[1753865108320,1.0674,3822.2,3822.1,2.4509]
[1753865108618,1.6543,3822.2,3822.1,2.4509]
[1753865109516,61.973,3822.3,3822.2,2.54218]
[1753865109705,40.8,3822.3,3822.2,2.97418]
[1753865110106,21.166,3822.4,3822.2,2.97418]
[1753865110306,21.166,3822.4,3822.3,2.4509]
[1753865111112,21.4511,3822.4,3822.3,2.4509]
[1753865111322,23.2686,3822.4,3822.3,2.4509]
[1753865112119,41.8352,3822.7,3822.6,0.9748]
[1753865112416,62.9872,3822.7,3822.6,2.4509]
[1753865112716,0.2851,3822.8,3822.7,1.63941]
[1753865112925,23.2536,3822.8,3822.7,2.97411]
[1753865113117,23.5378,3822.8,3822.7,2.97411]
[1753865113822,2.3868,3822.8,3822.7,2.97411]
[1753865114524,2.3868,3822.8,3822.7,2.4509]
[1753865114717,2.3868,3822.8,3822.7,2.54211]
[1753865115219,1.4478,3822.7,3822.6,0.52322]
[1753865115526,2.3865,3822.6,3822.5,0.52323]
[1753865115720,0.9387,3822.2,3822.1,2.54219]
[1753865115920,2.3865,3822.2,3822.1,2.97419]
[1753865116225,2.3865,3822.2,3822.1,1.49809]
[1753865117018,2.3865,3822.2,3822.1,0.5966]
[1753865117226,2.3865,3822.2,3822.1,0.3069]
[1753865117914,1.76472,3821.9,3821.8,0.19362351]
[1753865118115,0.9387,3821.5,3821.4,0.52338]
[1753865118322,2.3872,3821.5,3821.4,0.52338]
[1753865118519,1.5256,3821.5,3821.3,0.52339]
[1753865118721,2.3872,3821.4,3821.3,2.97429]
[1753865120118,2.3872,3821.4,3820.4,1.30879]
[1753865120119,0.735,3821.4,3820.5,0.432]
[1753865120324,0.4499,3821.0,3820.8,0.52346]
[1753865120518,1.1035,3821.0,3820.9,1.4068]
[1753865120919,1.7065,3821.0,3820.9,2.0026]
[1753865121418,1.7065,3821.0,3820.6,0.52349]
[1753865121617,1.6883,3820.8,3820.7,1.4066]
[1753865121820,0.7086,3820.9,3820.8,1.6168]
[1753865122025,1.0917,3820.9,3820.8,1.9887]
[1753865122328,1.0917,3820.9,3820.8,2.4477]
[1753865122515,0.6679,3820.9,3820.8,2.4477]
[1753865122716,1.0917,3820.9,3820.8,2.4477]
[1753865122926,1.6883,3820.9,3820.8,2.4477]
[1753865124124,1.6883,3820.9,3820.8,1.9887]
[1753865124425,1.6883,3820.9,3820.8,2.4477]
[1753865125329,1.6883,3820.9,3820.8,1.9887]
[1753865125925,1.6883,3820.9,3820.8,2.4477]
[1753865127026,6.92273736,3820.9,3820.8,0.4468]
[1753865127227,6.92273736,3820.9,3820.8,1.1111]
[1753865127420,1.6883,3820.9,3820.8,2.4477]
[1753865127624,1.0917,3820.9,3820.8,2.4477]
[1753865128729,0.2848,3820.9,3820.8,2.4477]
[1753865129125,1.6581,3820.9,3820.8,2.4477]
[1753865129726,1.6883,3820.9,3820.8,2.4477]
[1753865130334,5.90233736,3820.9,3820.8,0.9598]
[1753865130528,1.6883,3820.9,3820.8,2.4477]
[1753865130927,6.92273736,3820.9,3820.8,2.4477]
[1753865132821,0.6679,3820.9,3820.8,2.4477]
[1753865133222,1.0917,3820.9,3820.8,2.4477]
[1753865133427,1.6581,3820.9,3820.8,2.4477]
[1753865133628,1.0917,3820.9,3820.8,2.4477]
[1753865133926,0.52341,3821.3,3820.8,2.4477]
[1753865133927,0.2848,3821.3,3821.2,1.93001]
[1753865134128,40.8,3821.5,3821.4,1.92999]
[1753865134525,41.7902,3821.5,3821.4,2.38899]
[1753865134722,41.7902,3821.5,3821.4,2.97109]
[1753865135526,0.6981,3821.7,3821.6,1.48316]
[1753865135730,1.6883,3821.9,3821.8,1.48313]
[1753865135936,0.4238,3822.4,3821.8,0.9598]
[1753865136130,0.7086,3822.2,3822.1,1.48308]
[1753865136329,1.6581,3822.2,3822.1,2.97098]
[1753865136530,1.0917,3822.2,3822.1,2.97098]
[1753865136834,1.0917,3822.2,3821.6,5.274]
[1753865136835,41.7902,3822.5,3822.4,2.97095]
[1753865137031,41.7902,3822.5,3822.4,2.4477]
[1753865137631,41.7902,3822.5,3822.4,1.9887]
[1753865137842,41.7902,3822.5,3822.4,0.7392]
[1753865139238,1.2214,3822.1,3821.9,0.4468]